fUSD/lending_fUSD_20260213
["ID","MTS","AMOUNT","RATE_DAILY","PERIOD"]
[405302123,1770970259178,-161.324312,0.00036986,31]
[405302124,1770970259189,-714.400562,0.00036986,31]
[405302125,1770970259201,-158.384846,0.00036986,31]
[405302126,1770970259211,-161.324312,0.00036986,31]
[405302127,1770970259220,-714.400562,0.00036986,31]
[405302128,1770970259230,-161.324312,0.00036986,31]
[405302129,1770970259239,-714.400562,0.00036986,31]
[405302130,1770970259249,-161.324312,0.00036986,31]
[405302131,1770970259258,-714.400562,0.00036986,31]
[405302132,1770970259268,-161.324309,0.00036986,31]
[405302133,1770970259277,-714.400562,0.00036986,31]
[405302134,1770970259286,-714.400562,0.00036986,31]
[405302135,1770970259296,-714.400562,0.00036986,31]
[405302136,1770970259305,-714.400562,0.00036986,31]
[405302137,1770970259314,-714.400562,0.00036986,31]
[405302138,1770970259324,-714.400562,0.00036986,31]
[405302139,1770970259333,-432.808993,0.00036986,31]
[405302140,1770970259343,-714.400562,0.00036986,31]
[405302141,1770970259352,-432.808993,0.00036986,31]
[405302142,1770970259362,-714.400562,0.00036986,31]
[405302143,1770970259371,-432.808993,0.00036986,31]
[405302144,1770970259380,-714.400562,0.00036986,31]
[405302145,1770970259390,-714.400562,0.00036986,31]
[405302146,1770970259399,-432.808993,0.00036986,31]
[405302147,1770970259408,-714.400562,0.00036986,31]
[405302148,1770970259419,-432.808993,0.00036986,31]
[405302149,1770970259428,-500.0,0.00037,120]
[405302150,1770970259438,-3000.0,0.00037,30]
[405302151,1770970259447,-152.0,0.00037462,14]
[405302152,1770970259456,-6500.0,0.00037463,7]
[405302153,1770970259465,-151.0,0.00037997,14]
[405302154,1770970259474,-242.0,0.00038,120]
[405302155,1770970259484,-3000.0,0.00038,30]
[405302156,1770970259494,-274.57438426,0.00038,30]
[405302157,1770970259503,-343.0,0.00038,2]
[405302158,1770970259516,-41943.48,0.00038,14]
[405302159,1770970259525,-261.0812868,0.00038066,2]
[405302160,1770970259535,-152.0,0.00038085,15]
[405302161,1770970259545,-150.0,0.00038252,2]
[405302162,1770970259554,-1323.23953428,0.00038351,4]
[405302163,1770970259563,-1999.0,0.00038356,120]
[405302164,1770970259573,-1116.28,0.00038356,30]
[405302165,1770970259583,-500.0,0.00038356,120]
[405302166,1770970259593,-301.348649,0.00038356,120]
[405302167,1770970259603,-1337.0,0.00038394,2]
[405302168,1770970259613,-3488.0,0.00038394,2]
[405302169,1770970259623,-501.42928937,0.00038679,120]
[405302170,1770970259634,-500.0,0.000387,120]
[405302171,1770970259644,-639.29,0.000387,14]
[405302172,1770970259654,-152.0,0.00038709,16]
[405302173,1770970259664,-1572.86,0.00039,14]
[405302174,1770970259674,-1033.26,0.00039,30]
[405302175,1770970259683,-1011.41,0.00039,14]
[405302176,1770970259693,-150.74811196,0.00039,90]
[405302177,1770970259702,-3154.0,0.00039,30]
[405302178,1770970259711,-1999.0,0.00039178,120]
[405302179,1770970259720,-294.01298521,0.00039215,120]
[405302180,1770970259729,-152.0,0.00039332,17]
[405302181,1770970259738,-500.0,0.00039399,30]
[405302182,1770970259748,-733053.17672725,0.000394,7]
[405302183,1770970259757,-2000.0,0.000396,2]
[405302184,1770970259767,-151.0,0.00039778,14]
[405302185,1770970259776,-77777.82706922,0.00039781,7]
[405302186,1770970259785,-1558.68796301,0.00039798,2]
[405302187,1770970259795,-371.94213864,0.00039798,2]
[405302188,1770970259804,-301.02860324,0.00039798,2]
[405302189,1770970259813,-300.0,0.00039798,2]
[405302190,1770970259823,-300.0,0.00039798,2]
[405302191,1770970259834,-300.0,0.00039798,2]
[405302192,1770970259843,-301.20809281,0.00039798,2]
[405302193,1770970259853,-576.15633388,0.00039798,2]
[405302194,1770970259863,-1558.68796301,0.00039798,2]
[405302195,1770970259873,-300.52729027,0.00039798,2]
[405302196,1770970259882,-300.0,0.00039798,2]
[405302197,1770970259892,-300.0,0.00039798,2]
[405302198,1770970259902,-300.0,0.00039798,2]
[405302199,1770970259913,-300.51467445,0.00039798,2]
[405302200,1770970259924,-1558.68796301,0.00039798,2]
[405302201,1770970259934,-300.70116688,0.00039798,2]
[405302202,1770970259943,-300.81091155,0.00039798,2]
[405302203,1770970259953,-499.96736827,0.00039798,2]
[405302204,1770970259963,-1558.68796301,0.00039798,2]
[405302205,1770970259973,-1558.68796301,0.00039798,2]
[405302206,1770970259983,-1558.68796301,0.00039798,2]
[405302207,1770970259992,-1558.68796301,0.00039798,2]
[405302208,1770970260002,-1558.68796301,0.00039798,2]
[405302209,1770970260012,-1558.68796301,0.00039798,2]
[405302210,1770970260021,-1681.21648235,0.00039798,2]
[405302211,1770970260031,-200.0,0.00039808,5]
[405302212,1770970260042,-152.0,0.00039955,18]
[405302213,1770970260052,-365.93929912,0.00039999,15]
[405302214,1770970260063,-330.9681585,0.0004,120]
[405302215,1770970260074,-1999.15330172,0.0004,30]
[405302216,1770970260084,-18803.22318422,0.0004,120]
[405302217,1770970260094,-10741.89523399,0.0004,120]
[405302218,1770970260103,-2836.61906496,0.0004,120]
[405302219,1770970260113,-200.0,0.0004,120]
[405302220,1770970260123,-594.69,0.0004,120]
[405302221,1770970260132,-315.05,0.0004,120]
[405302222,1770970260141,-206.74,0.0004,120]
[405302223,1770970260150,-291.54305096,0.0004,45]
[405302224,1770970260160,-151.0,0.0004,120]
[405302225,1770970260169,-160.0,0.0004,120]
[405302226,1770970260179,-160.0,0.0004,30]
[405302227,1770970260189,-151.0,0.0004,120]
[405302228,1770970260199,-253.0,0.0004,30]
[405302229,1770970260209,-160.0,0.0004,120]
[405302230,1770970260219,-160.0,0.0004,30]
[405302231,1770970260229,-160.0,0.0004,7]
[405302232,1770970260238,-1999.0,0.0004,120]
[405302233,1770970260249,-41943.48,0.0004,14]
[405302234,1770970260259,-150.0,0.00040165,2]
[405302235,1770970260268,-639.29,0.000403,14]
[405302236,1770970260278,-1572.86,0.000403,14]
[405302237,1770970260288,-150.0,0.0004032,2]
[405302238,1770970260297,-152.0,0.00040579,19]
[405302239,1770970260307,-151.0,0.000408,120]
[405302240,1770970260316,-200.0,0.00040808,5]
[405302241,1770970260326,-1999.0,0.00040821,120]
[405302242,1770970260336,-151.0,0.000409,120]
[405302243,1770970260346,-600.5276648,0.00041,30]
[405302244,1770970260355,-1011.41,0.00041,14]
[405302245,1770970260364,-967.68256866,0.00041,120]
[405302246,1770970260374,-177.0,0.00041,60]
[405302247,1770970260383,-139814.0,0.00041,120]
[405302248,1770970260394,-300.0,0.00041,120]
[405302249,1770970260403,-265.464617,0.00041,34]
[405302250,1770970260413,-8000.0,0.00041,14]
[405302251,1770970260422,-782.86914149,0.00041068,120]
[405302252,1770970260431,-362.67944114,0.00041068,120]
[405302253,1770970260441,-300.0,0.00041068,22]
[405302254,1770970260452,-839.0,0.00041096,120]
[405302255,1770970260462,-20244.32,0.00041096,120]
[405302256,1770970260472,-179.942559,0.00041096,120]
[405302257,1770970260482,-179.942559,0.00041096,120]
[405302258,1770970260492,-179.942559,0.00041096,120]
[405302259,1770970260502,-179.942559,0.00041096,120]
[405302260,1770970260511,-179.942559,0.00041096,120]
[405302261,1770970260521,-179.942559,0.00041096,120]
[405302262,1770970260531,-179.942559,0.00041096,120]
[405302263,1770970260540,-179.942559,0.00041096,120]
[405302264,1770970260550,-179.942559,0.00041096,120]
[405302265,1770970260559,-179.942559,0.00041096,120]
[405302266,1770970260569,-179.942559,0.00041096,120]
[405302267,1770970260579,-179.942559,0.00041096,120]
[405302268,1770970260588,-179.942559,0.00041096,120]
[405302269,1770970260598,-179.942559,0.00041096,120]
[405302270,1770970260608,-179.942559,0.00041096,120]
[405302271,1770970260618,-179.942559,0.00041096,120]
[405302272,1770970260629,-179.942559,0.00041096,120]
[405302273,1770970260639,-179.942559,0.00041096,120]
[405302274,1770970260650,-179.942559,0.00041096,120]
[405302275,1770970260659,-179.942554,0.00041096,120]
[405302276,1770970260670,-160.0,0.000412,120]
[405302277,1770970260679,-160.0,0.000412,7]
[405302278,1770970260689,-152.0,0.00041202,20]
[405302279,1770970260698,-198.186149,0.00041233,120]
[405302280,1770970260708,-198.186149,0.00041233,120]
[405302281,1770970260718,-198.186149,0.00041233,120]
[405302282,1770970260727,-198.186149,0.00041233,120]
[405302283,1770970260737,-198.186149,0.00041233,120]
[405302284,1770970260748,-198.186149,0.00041233,120]
[405302285,1770970260757,-198.186149,0.00041233,120]
[405302286,1770970260769,-198.186149,0.00041233,120]
[405302287,1770970260779,-198.186149,0.00041233,120]
[405302288,1770970260789,-198.186149,0.00041233,120]
[405302289,1770970260798,-198.186149,0.00041233,120]
[405302290,1770970260807,-198.186149,0.00041233,120]
[405302291,1770970260817,-198.186149,0.00041233,120]
[405302292,1770970260826,-198.186149,0.00041233,120]
[405302293,1770970260836,-198.186149,0.00041233,120]
[405302294,1770970260849,-198.186149,0.00041233,120]
[405302295,1770970260859,-198.186149,0.00041233,120]
[405302296,1770970260868,-198.186149,0.00041233,120]
[405302297,1770970260877,-198.186149,0.00041233,120]
[405302298,1770970260887,-198.186145,0.00041233,120]
[405302299,1770970260897,-150.12293208,0.0004128,2]
[405302300,1770970260906,-1337.0,0.00041394,2]
[405302301,1770970260918,-459.0,0.000414,120]
[405302302,1770970260928,-1068.75491679,0.00041414,120]
[405302304,1770970260938,-256.7657963,0.000415,120]
[405302305,1770970260947,-152.14,0.00041516,120]
[405302306,1770970260957,-558.0,0.000416,120]
[405302307,1770970260967,-152.14,0.00041616,120]
[405302308,1770970260976,-1999.0,0.00041643,120]
[405302309,1770970260986,-839.0,0.00041644,120]
[405302310,1770970260995,-151.0,0.000417,120]
[405302311,1770970261004,-152.14,0.00041716,120]
[405302312,1770970261014,-243.13369122,0.00041808,5]
[405302313,1770970261023,-152.14,0.00041816,120]
[405302314,1770970261033,-152.0,0.00041826,21]
[405302315,1770970261042,-1572.86,0.000419,14]
[405302316,1770970261051,-151.0,0.000419,120]
[405302317,1770970261060,-152.14,0.00041916,120]
[405302318,1770970261069,-1074.151743,0.00042,10]
[405302319,1770970261079,-1713.81995086,0.00042,120]
[405302320,1770970261088,-20427.32705973,0.00042,120]
[405302321,1770970261098,-200.0,0.00042,120]
[405302322,1770970261107,-600.0,0.00042,2]
[405302323,1770970261116,-300.0,0.00042,120]
[405302324,1770970261126,-500.0,0.00042,120]
[405302325,1770970261136,-41943.48,0.00042,14]
[405302326,1770970261147,-1116.28,0.00042009,120]
[405302327,1770970261157,-152.14,0.00042016,120]
[405302328,1770970261169,-639.29,0.000421,14]
[405302329,1770970261180,-152.14,0.00042116,120]
[405302330,1770970261191,-150.0,0.00042173,120]
[405302331,1770970261200,-839.0,0.00042192,120]
[405302332,1770970261211,-152.14,0.00042216,120]
[405302333,1770970261221,-152.14,0.00042316,120]
[405302334,1770970261230,-915.40895618,0.00042339,120]
[405302335,1770970261240,-150.0,0.0004234,120]
[405302336,1770970261249,-152.14,0.00042416,120]
[405302337,1770970261259,-659.06,0.00042438,120]
[405302338,1770970261269,-152.0,0.00042449,22]
[405302339,1770970261281,-1999.0,0.00042465,120]
[405302340,1770970261291,-1011.41,0.000425,14]
[405302341,1770970261300,-228.6585,0.000425,120]
[405302342,1770970261310,-151.0,0.000425,120]
[405302343,1770970261320,-500.0,0.000425,120]
[405302344,1770970261330,-152.14,0.00042516,120]
[405302345,1770970261339,-220.0,0.0004255,120]
[405302346,1770970261349,-659.06,0.00042575,120]
[405302347,1770970261359,-500.0,0.00042599,60]
[405302348,1770970261369,-500.0,0.00042599,60]
[405302349,1770970261379,-500.0,0.00042599,60]
[405302350,1770970261388,-152.14,0.00042616,120]
[405302351,1770970261398,-266.0,0.000427,120]
[405302352,1770970261408,-659.06,0.00042712,120]
[405302353,1770970261418,-152.14,0.00042716,120]
[405302354,1770970261428,-839.0,0.0004274,120]
[405302355,1770970261438,-4000.0,0.0004274,14]
[405302356,1770970261448,-151.0,0.000428,120]
[405302357,1770970261457,-152.14,0.00042816,120]
[405302358,1770970261465,-659.06,0.00042849,120]
[405302359,1770970261475,-150.0,0.00042899,120]
[405302360,1770970261484,-1572.86,0.000429,14]
[405302361,1770970261494,-10317.95139985,0.000429,120]
[405302362,1770970261504,-99315.94639462,0.000429,120]
[405302363,1770970261515,-152.14,0.00042916,120]
[405302364,1770970261525,-208.0,0.0004295,30]
[405302365,1770970261535,-659.06,0.00042986,120]
[405302366,1770970261545,-150.49,0.0004299,20]
[405302367,1770970261556,-173.51839928,0.00042998,5]
[405302368,1770970261566,-20000.0,0.00043,120]
[405302369,1770970261576,-1033.26,0.00043,30]
[405302370,1770970261585,-160.143999,0.00043,120]
[405302371,1770970261595,-2026.12558967,0.00043,120]
[405302372,1770970261604,-10227.1809722,0.00043,120]
[405302373,1770970261614,-500.0,0.00043,120]
[405302374,1770970261624,-50992.64354305,0.00043,30]
[405302375,1770970261634,-32250.0,0.00043,120]
[405302376,1770970261644,-1000.0,0.00043,27]
[405302377,1770970261654,-1000.0,0.00043,120]
[405302378,1770970261665,-27999.93,0.00043,30]
[405302379,1770970261675,-218.05133884,0.00043,120]
[405302380,1770970261684,-4732.65452761,0.00043,120]
[405302381,1770970261694,-322359.46579766,0.00043,120]
[405302382,1770970261703,-169701.80016163,0.00043,10]
[405302391,1770970330865,10000.0,0.0002,30]
[405302395,1770970347473,6759.02,0.0002,30]
[405302396,1770970350948,200.0,6.7e-05,2]
[405302397,1770970353284,400.0,6.8e-05,2]
[405302398,1770970355188,700.0,6.9e-05,2]
[405302399,1770970357265,900.0,7e-05,2]
[405302400,1770970432089,440.03,7e-05,2]
[405302406,1770970784342,347.24,7e-05,2]
[405302409,1770970879996,75612.73,6.97e-05,2]
[405302424,1770971350270,-216.92,6.783e-05,2]
[405302425,1770971350293,-153.13440166,6.843e-05,2]
[405302426,1770971350315,-7921.49784156,6.86e-05,2]
[405302427,1770971350335,-151.0,6.867e-05,2]
[405302428,1770971350356,-151.0,6.867e-05,2]
[405302429,1770971350382,-300.0,6.868e-05,2]
[405302430,1770971350403,-150.0,6.869e-05,2]
[405302431,1770971350424,-300.0,6.869e-05,2]
[405302432,1770971350444,-656.44775678,6.869e-05,2]
[405302433,1770971350927,-543.55224322,6.869e-05,2]
[405302434,1770971350966,-8912.90551356,6.87e-05,2]
[405302435,1770971351674,-10000.0,6.87e-05,2]
[405302436,1770971352035,-10000.0,6.87e-05,2]
[405302437,1770971352408,-10000.0,6.87e-05,2]
[405302438,1770971352938,-10000.0,6.87e-05,2]
[405302439,1770971353238,-10000.0,6.87e-05,2]
[405302440,1770971353710,-10000.0,6.87e-05,2]
[405302441,1770971354199,-10000.0,6.87e-05,2]
[405302442,1770971354705,-10000.0,6.87e-05,2]
[405302443,1770971355059,-10000.0,6.87e-05,2]
[405302444,1770971355416,-10000.0,6.87e-05,2]
[405302445,1770971355778,-10000.0,6.87e-05,2]
[405302446,1770971356198,-10000.0,6.87e-05,2]
[405302447,1770971356503,-10000.0,6.87e-05,2]
[405302448,1770971356927,-10000.0,6.87e-05,2]
[405302453,1770971357152,-10000.0,6.87e-05,2]
[405302463,1770971357535,-10000.0,6.87e-05,2]
[405302464,1770971357928,-10000.0,6.87e-05,2]
[405302465,1770971358315,-10000.0,6.87e-05,2]
[405302466,1770971358699,-10000.0,6.87e-05,2]
[405302467,1770971359098,-10000.0,6.87e-05,2]
[405302468,1770971359779,-10000.0,6.87e-05,2]
[405302469,1770971359890,-10000.01,6.87e-05,2]
[405302470,1770971359937,-10000.0,6.87e-05,2]
[405302471,1770971360369,-10000.0,6.87e-05,2]
[405302472,1770971361012,-10000.0,6.87e-05,2]
[405302473,1770971361305,-10000.0,6.87e-05,2]
[405302474,1770971361606,-10000.0,6.87e-05,2]
[405302475,1770971361918,-10000.0,6.87e-05,2]
[405302476,1770971362310,-10000.0,6.87e-05,2]
[405302477,1770971362695,-10000.0,6.87e-05,2]
[405302478,1770971363050,-10000.0,6.87e-05,2]
[405302479,1770971363451,-10000.0,6.87e-05,2]
[405302480,1770971363890,-10000.0,6.87e-05,2]
[405302481,1770971364198,-10000.0,6.87e-05,2]
[405302482,1770971365088,-10000.0,6.87e-05,2]
[405302483,1770971365750,-10000.0,6.87e-05,2]
[405302484,1770971366410,-10000.0,6.87e-05,2]
[405302492,1770971431523,-300.0,6.869e-05,2]
[405302494,1770971431534,-300.0,6.869e-05,2]
[405302495,1770971431543,-156.18617286,6.869e-05,2]
[405302496,1770971431607,-1043.81382714,6.869e-05,2]
[405302497,1770971431617,-150.0,6.869e-05,2]
[405302498,1770971431627,-300.0,6.869e-05,2]
[405302499,1770971431636,-573.82193099,6.869e-05,2]
[405302500,1770971431646,-500.0,6.869e-05,2]
[405302501,1770971431655,-500.0,6.869e-05,2]
[405302502,1770971431665,-500.0,6.869e-05,2]
[405302503,1770971431675,-500.0,6.869e-05,2]
[405302504,1770971431685,-500.0,6.869e-05,2]
[405302505,1770971431694,-500.0,6.869e-05,2]
[405302506,1770971431704,-500.0,6.869e-05,2]
[405302507,1770971431714,-500.0,6.869e-05,2]
[405302508,1770971431723,-500.0,6.869e-05,2]
[405302509,1770971431733,-500.0,6.869e-05,2]
[405302510,1770971431743,-500.0,6.869e-05,2]
[405302511,1770971431752,-500.0,6.869e-05,2]
[405302512,1770971431762,-500.0,6.869e-05,2]
[405302513,1770971431771,-500.0,6.869e-05,2]
[405302514,1770971431780,-500.0,6.869e-05,2]
[405302515,1770971431790,-221.17661005,6.869e-05,2]
[405302516,1770971431825,-278.82338995,6.869e-05,2]
[405302517,1770971431834,-500.0,6.869e-05,2]
[405302518,1770971431844,-500.0,6.869e-05,2]
[405302519,1770971431853,-72.32253444,6.869e-05,2]
[405302521,1770971431864,-427.67746556,6.869e-05,2]
[405302523,1770971431873,-500.0,6.869e-05,2]
[405302525,1770971431882,-356.06858487,6.869e-05,2]
[405302528,1770971431904,-143.93141513,6.869e-05,2]
[405302529,1770971431913,-500.0,6.869e-05,2]
[405302530,1770971431922,-500.0,6.869e-05,2]
[405302531,1770971431931,-500.0,6.869e-05,2]
[405302532,1770971431940,-500.0,6.869e-05,2]
[405302533,1770971431949,-500.0,6.869e-05,2]
[405302534,1770971431966,-513.35173313,6.869e-05,2]
[405302535,1770971431979,-500.0,6.869e-05,2]
[405302536,1770971431989,-500.0,6.869e-05,2]
[405302537,1770971431999,-500.0,6.869e-05,2]
[405302538,1770971432009,-446.69807936,6.869e-05,2]
[405302539,1770971432018,-500.0,6.869e-05,2]
[405302540,1770971432028,-500.0,6.869e-05,2]
[405302541,1770971432037,-500.0,6.869e-05,2]
[405302542,1770971432046,-500.0,6.869e-05,2]
[405302543,1770971432056,-500.0,6.869e-05,2]
[405302544,1770971432066,-500.0,6.869e-05,2]
[405302545,1770971432076,-400.0,6.869e-05,2]
[405302546,1770971432086,-500.0,6.869e-05,2]
[405302547,1770971432095,-465670.5792153,6.87e-05,2]
[405302548,1770971432108,-5486.53788134,6.87e-05,2]
[405302549,1770971432119,-44456.81138396,6.87e-05,2]
[405302550,1770971432130,-6787.36888725,6.87e-05,2]
[405302553,1770971437697,-500.0,6.869e-05,2]
[405302554,1770971437707,-23.39869936,6.869e-05,2]
[405302555,1770971437718,-476.60130064,6.869e-05,2]
[405302556,1770971437727,-500.0,6.869e-05,2]
[405302557,1770971437737,-1155.41767,6.87e-05,2]
[405302558,1770971437746,-2432.02880469,6.87e-05,2]
[405302559,1770971437755,-222.79011993,6.87e-05,2]
[405302560,1770971437764,-2598685.78711859,6.87e-05,2]
[405302561,1770971437774,-208.34,6.9e-05,2]
[405302562,1770971437784,-482.44847952,6.9e-05,2]
[405302564,1770971437795,-788.39178057,6.9e-05,2]
[405302565,1770971437804,-3127.02790498,6.9e-05,2]
[405302566,1770971437813,-336.88,6.969e-05,2]
[405302567,1770971437823,-1000.0,6.999e-05,2]
[405302569,1770971437833,-4133.15,7.063e-05,2]
[405302571,1770971437842,-150.99,7.063e-05,2]
[405302573,1770971437851,-999.99,7.063e-05,2]
[405302575,1770971437860,-1215.687,7.072e-05,2]
[405302577,1770971437870,-159.515,7.072e-05,2]
[405302579,1770971437879,-5912.89,7.072e-05,2]
[405302581,1770971437889,-9999.99,7.072e-05,2]
[405302583,1770971437898,-500.0,7.073e-05,2]
[405302585,1770971437908,-150.99,7.073e-05,2]
[405302587,1770971437918,-9999.99,7.073e-05,2]
[405302589,1770971437927,-9999.99,7.073e-05,2]
[405302591,1770971437936,-9999.99,7.073e-05,2]
[405302593,1770971437945,-8586.7,7.09e-05,2]
[405302595,1770971437955,-1044.13504921,7.172e-05,2]
[405302597,1770971437964,-195.981,7.172e-05,2]
[405302599,1770971437973,-336.88,7.243e-05,2]
[405302600,1770971437983,-166.66,7.409e-05,2]
[405302601,1770971437996,-253.27126984,7.462e-05,2]
[405302602,1770971438005,-336.88,7.517e-05,2]
[405302603,1770971438015,-250.0,7.556e-05,2]
[405302604,1770971438025,-632.0,7.556e-05,2]
[405302605,1770971438034,-420.0,7.556e-05,2]
[405302606,1770971438044,-1680.0,7.556e-05,2]
[405302607,1770971438054,-255.0,7.556e-05,2]
[405302608,1770971438063,-420.0,7.556e-05,2]
[405302609,1770971438072,-166.66,7.653e-05,2]
[405302610,1770971438081,-336.88,7.791e-05,2]
[405302611,1770971438091,-166.66,7.898e-05,2]
[405302612,1770971438100,-9184.493622,7.945e-05,2]
[405302613,1770971438110,-174870.22,7.963e-05,2]
[405302614,1770971438119,-336.90344325,8.065e-05,2]
[405302615,1770971438129,-166.66,8.143e-05,2]
[405302616,1770971438138,-9616.402967,8.178e-05,2]
[405302617,1770971438148,-587.0,8.312e-05,2]
[405302618,1770971438157,-2351.0,8.312e-05,2]
[405302619,1770971438171,-433.0,8.312e-05,2]
[405302620,1770971438191,-587.0,8.312e-05,2]
[405302621,1770971438202,-166.66,8.387e-05,2]
[405302622,1770971438223,-1852.42,8.508e-05,2]
[405302623,1770971438239,-166.66,8.632e-05,2]
[405302624,1770971438248,-500.0,8.906e-05,2]
[405302625,1770971438258,-250.0,8.963e-05,2]
[405302626,1770971438267,-210.64,9.108e-05,2]
[405302627,1770971438277,-341.74,9.142e-05,2]
[405302628,1770971438289,-823.0,9.143e-05,2]
[405302629,1770971438299,-3292.0,9.143e-05,2]
[405302630,1770971438309,-736.0,9.143e-05,2]
[405302631,1770971438319,-823.0,9.143e-05,2]
[405302632,1770971438328,-500.0,9.18e-05,2]
[405302633,1770971438338,-398.53,9.222e-05,2]
[405302634,1770971438347,-325.38,9.222e-05,2]
[405302635,1770971438357,-3094.0,9.222e-05,2]
[405302636,1770971438367,-150.0,9.222e-05,2]
[405302637,1770971438377,-1223.59,9.295e-05,2]
[405302638,1770971438386,-321.85,9.301e-05,2]
[405302639,1770971438395,-500.0,9.454e-05,2]
[405302640,1770971438405,-9999.99,9.67e-05,2]
[405302641,1770971438414,-500.0,9.728e-05,2]
[405302642,1770971438423,-232.78327733,0.0001,2]
[405302643,1770971438433,-232.78327733,0.0001,2]
[405302644,1770971438444,-232.78327733,0.0001,2]
[405302645,1770971438453,-151.0,0.0001,2]
[405302646,1770971438463,-151.0,0.0001,2]
[405302647,1770971438473,-151.0,0.0001,2]
[405302648,1770971438482,-151.0,0.0001,2]
[405302649,1770971438492,-151.0,0.0001,2]
[405302650,1770971438501,-151.0,0.0001,2]
[405302651,1770971438511,-151.0,0.0001,2]
[405302652,1770971438521,-151.0,0.0001,2]
[405302653,1770971438531,-151.0,0.0001,2]
[405302654,1770971438540,-151.0,0.0001,2]
[405302655,1770971438550,-151.0,0.0001,2]
[405302656,1770971438559,-151.0,0.0001,2]
[405302657,1770971438570,-151.0,0.0001,2]
[405302658,1770971438580,-151.0,0.0001,2]
[405302659,1770971438591,-151.0,0.0001,2]
[405302660,1770971438601,-151.0,0.0001,2]
[405302661,1770971438611,-151.0,0.0001,2]
[405302662,1770971438622,-151.0,0.0001,2]
[405302663,1770971438632,-151.0,0.0001,2]
[405302664,1770971438643,-153.95643455,0.0001,2]
[405302665,1770971438652,-660.71491564,0.0001,2]
[405302666,1770971438663,-175.06822215,0.0001,2]
[405302667,1770971438672,-1966.0489619,0.0001,2]
[405302668,1770971438683,-14989.60970083,0.0001,2]
[405302669,1770971438693,-874.96955465,0.0001,2]
[405302670,1770971438703,-500.0,0.00010002,2]
[405302671,1770971438713,-1252.0,0.00010056,2]
[405302672,1770971438723,-1152.0,0.00010057,2]
[405302673,1770971438732,-4609.0,0.00010057,2]
[405302674,1770971438742,-260.47970355,0.000101,2]
[405302675,1770971438752,-500.0,0.00010276,2]
[405302676,1770971438761,-4704.183295,0.00010339,2]
[405302677,1770971438771,-2927.298385,0.00010339,2]
[405302678,1770971438781,-157.75238177,0.0001055,2]
[405302679,1770971438790,-268.96643021,0.000107,2]
[405302680,1770971438802,-150.0,0.00010756,2]
[405302681,1770971438813,-200.0,0.00010756,2]
[405302682,1770971438824,-500.0,0.00010756,2]
[405302683,1770971438834,-150.0,0.00010756,2]
[405302684,1770971438844,-500.0,0.00010756,2]
[405302685,1770971438854,-500.0,0.00010756,2]
[405302686,1770971438864,-500.0,0.00010756,2]
[405302687,1770971438874,-500.0,0.00010756,2]
[405302688,1770971438884,-500.0,0.00010756,2]
[405302689,1770971438894,-150.0,0.00010756,2]
[405302690,1770971438903,-150.0,0.00010756,2]
[405302691,1770971438913,-500.0,0.00010756,2]
[405302692,1770971438922,-150.0,0.00010756,2]
[405302693,1770971438932,-500.0,0.00010756,2]
[405302694,1770971438943,-275.8371773,0.00010756,2]
[405302695,1770971438953,-158.35880626,0.00010756,2]
[405302696,1770971438962,-158.83979341,0.00010756,2]
[405302697,1770971438972,-2606.0,0.00010756,2]
[405302698,1770971438981,-150.0,0.00010756,2]
[405302699,1770971438991,-157.94858373,0.00010756,2]
[405302700,1770971439000,-265.88984898,0.00010756,2]